[Event "Titled Tuesday Blitz February 28 Late 2023"]
[White "Chigaev, Maksim"]
[Black "Atanasov, Anthony"]
[WhiteFideId "4108116"]
[BlackFideId "2623897"]
[WhiteElo "2547"]
[BlackElo "2070"]
[Result "1-0"]
[Round "02"]
[TimeControl "180+2"]
[Date "2023.02.28"]
[WhiteClock "0:00:35"]
[BlackClock "0:00:02"]

1. Nf3 {[%clk 0:03:00]}  d5 {[%clk 0:03:00]} 2. c4 {[%clk 0:03:00]}  d4 {[%clk 0:03:00]} 3. b4 {[%clk 0:02:59]}  c5 {[%clk 0:03:00]} 4. g3 {[%clk 0:02:59]}  a5 {[%clk 0:02:59]} 5. bxc5 {[%clk 0:02:55]}  Nc6 {[%clk 0:02:59]} 6. Bg2 {[%clk 0:02:55]}  e5 {[%clk 0:02:59]} 7. d3 {[%clk 0:02:55]}  Bxc5 {[%clk 0:02:59]} 8. O-O {[%clk 0:02:56]}  Nge7 {[%clk 0:02:59]} 9. a4 {[%clk 0:02:57]}  O-O {[%clk 0:02:58]} 10. Na3 {[%clk 0:02:57]}  h6 {[%clk 0:02:56]} 11. Nb5 {[%clk 0:02:58]}  f5 {[%clk 0:02:56]} 12. Ba3 {[%clk 0:02:59]}  Bxa3 {[%clk 0:02:53]} 13. Rxa3 {[%clk 0:03:00]}  Be6 {[%clk 0:02:53]} 14. Ra1 {[%clk 0:02:53]}  Qb6 {[%clk 0:02:52]} 15. Rb1 {[%clk 0:02:53]}  Qd8 {[%clk 0:02:41]} 16. c5 {[%clk 0:02:26]}  Nd5 {[%clk 0:02:27]} 17. Qc1 {[%clk 0:02:25]}  Qf6 {[%clk 0:02:12]} 18. Nd2 {[%clk 0:02:21]}  Ncb4 {[%clk 0:02:02]} 19. Qb2 {[%clk 0:01:49]}  e4 {[%clk 0:01:28]} 20. Nxd4 {[%clk 0:01:41]}  exd3 {[%clk 0:01:21]} 21. Nxe6 {[%clk 0:01:40]}  dxe2 {[%clk 0:01:09]} 22. Nxf8 {[%clk 0:01:37]}  exf1=Q+ {[%clk 0:01:08]} 23. Nxf1 {[%clk 0:01:37]}  Qxb2 {[%clk 0:00:17]} 24. Rxb2 {[%clk 0:01:31]}  Kxf8 {[%clk 0:00:16]} 25. Bxd5 {[%clk 0:01:25]}  Nxd5 {[%clk 0:00:17]} 26. Rxb7 {[%clk 0:01:23]}  Nc3 {[%clk 0:00:12]} 27. c6 {[%clk 0:01:00]}  Rc8 {[%clk 0:00:10]} 28. c7 {[%clk 0:00:57]}  Ke7 {[%clk 0:00:09]} 29. Ne3 {[%clk 0:00:57]}  Kd7 {[%clk 0:00:01]} 30. Ra7 {[%clk 0:00:55]}  f4 {[%clk 0:00:01]} 31. Nf5 {[%clk 0:00:52]}  Rxc7 {[%clk 0:00:01]} 32. Rxa5 {[%clk 0:00:51]}  g6 {[%clk 0:00:02]} 33. Nd4 {[%clk 0:00:43]}  Rc4 {[%clk 0:00:02]} 34. Nf3 {[%clk 0:00:35]}  fxg3 {[%clk 0:00:02]} 35. Ne5+ {[%clk 0:00:35]} 1-0


[Site "https://www.chess.com"]

[Event "Titled Tuesday Blitz February 28 Late 2023"]
[White "Nefedov, Sergey"]
[Black "Dardha, Daniel"]
[WhiteFideId "24113417"]
[BlackFideId "240990"]
[WhiteElo "2227"]
[BlackElo "2581"]
[Result "0-1"]
[Round "02"]
[TimeControl "180+2"]
[Date "2023.02.28"]
[WhiteClock "0:00:02"]
[BlackClock "0:01:10"]

1. d4 {[%clk 0:03:00]}  d5 {[%clk 0:02:59]} 2. Nf3 {[%clk 0:03:00]}  Nf6 {[%clk 0:02:59]} 3. Bf4 {[%clk 0:02:59]}  Bf5 {[%clk 0:02:56]} 4. e3 {[%clk 0:02:59]}  e6 {[%clk 0:02:56]} 5. c4 {[%clk 0:02:59]}  Bb4+ {[%clk 0:02:55]} 6. Nc3 {[%clk 0:02:58]}  O-O {[%clk 0:02:53]} 7. Qb3 {[%clk 0:02:56]}  c5 {[%clk 0:02:52]} 8. dxc5 {[%clk 0:02:53]}  Nc6 {[%clk 0:02:51]} 9. a3 {[%clk 0:02:30]}  Bxc3+ {[%clk 0:02:49]} 10. Qxc3 {[%clk 0:02:27]}  Ne4 {[%clk 0:02:48]} 11. Qc1 {[%clk 0:02:04]}  Nxc5 {[%clk 0:02:48]} 12. Nd2 {[%clk 0:02:01]}  e5 {[%clk 0:02:36]} 13. Bg3 {[%clk 0:01:53]}  d4 {[%clk 0:02:32]} 14. b4 {[%clk 0:00:58]}  Nd3+ {[%clk 0:02:31]} 15. Bxd3 {[%clk 0:00:57]}  Bxd3 {[%clk 0:02:31]} 16. e4 {[%clk 0:00:53]}  f5 {[%clk 0:02:30]} 17. exf5 {[%clk 0:00:49]}  e4 {[%clk 0:02:27]} 18. c5 {[%clk 0:00:45]}  Qd5 {[%clk 0:02:25]} 19. Qb2 {[%clk 0:00:28]}  Rfe8 {[%clk 0:02:01]} 20. Qb3 {[%clk 0:00:27]}  Rad8 {[%clk 0:01:52]} 21. Qxd5+ {[%clk 0:00:26]}  Rxd5 {[%clk 0:01:53]} 22. O-O-O {[%clk 0:00:26]}  a5 {[%clk 0:01:52]} 23. Rhe1 {[%clk 0:00:16]}  axb4 {[%clk 0:01:51]} 24. axb4 {[%clk 0:00:10]}  Nxb4 {[%clk 0:01:50]} 25. Nb3 {[%clk 0:00:04]}  Ra8 {[%clk 0:01:24]} 26. Rd2 {[%clk 0:00:01]}  Ra3 {[%clk 0:01:19]} 27. Rb2 {[%clk 0:00:01]}  Bc4 {[%clk 0:01:18]} 28. Nd2 {[%clk 0:00:01]}  Nd3+ {[%clk 0:01:18]} 29. Kb1 {[%clk 0:00:01]}  Nxb2 {[%clk 0:01:14]} 30. Kxb2 {[%clk 0:00:01]}  Ra2+ {[%clk 0:01:15]} 31. Kc1 {[%clk 0:00:01]}  Rxc5 {[%clk 0:01:15]} 32. Nxc4 {[%clk 0:00:01]}  Ra1+ {[%clk 0:01:10]} 33. Kd2 {[%clk 0:00:02]}  Rxe1 {[%clk 0:01:10]} 34. Kxe1 {[%clk 0:00:02]}  Rxc4 {[%clk 0:01:10]} 35. Be5 {[%clk 0:00:02]}  b5 {[%clk 0:01:10]} 0-1


[Site "https://www.chess.com"]

[Event "Titled Tuesday Blitz February 28 Late 2023"]
[White "Hansen, Eric"]
[Black "Gascon Del Nogal, Jose Rafael"]
[WhiteFideId "2606771"]
[BlackFideId "3902463"]
[WhiteElo "2569"]
[BlackElo "2473"]
[Result "1-0"]
[Round "02"]
[TimeControl "180+2"]
[Date "2023.02.28"]
[WhiteClock "0:00:02"]
[BlackClock "0:00:01"]

1. e4 {[%clk 0:03:00]}  c5 {[%clk 0:02:59]} 2. Nf3 {[%clk 0:02:58]}  d6 {[%clk 0:02:59]} 3. Bc4 {[%clk 0:02:56]}  e6 {[%clk 0:02:56]} 4. O-O {[%clk 0:02:56]}  Nf6 {[%clk 0:02:55]} 5. d3 {[%clk 0:02:56]}  Nc6 {[%clk 0:02:55]} 6. a3 {[%clk 0:02:55]}  Be7 {[%clk 0:02:55]} 7. Nc3 {[%clk 0:02:55]}  O-O {[%clk 0:02:54]} 8. Ba2 {[%clk 0:02:56]}  Nd7 {[%clk 0:02:54]} 9. Be3 {[%clk 0:02:54]}  Nde5 {[%clk 0:02:43]} 10. Nd2 {[%clk 0:02:54]}  Nd4 {[%clk 0:02:42]} 11. f4 {[%clk 0:02:54]}  Nec6 {[%clk 0:02:42]} 12. Ne2 {[%clk 0:02:53]}  Nxe2+ {[%clk 0:02:41]} 13. Qxe2 {[%clk 0:02:52]}  d5 {[%clk 0:02:29]} 14. Nf3 {[%clk 0:02:47]}  b6 {[%clk 0:02:24]} 15. Rad1 {[%clk 0:02:45]}  Ba6 {[%clk 0:02:21]} 16. Qf2 {[%clk 0:02:44]}  dxe4 {[%clk 0:02:13]} 17. dxe4 {[%clk 0:02:44]}  Qc7 {[%clk 0:02:13]} 18. Rfe1 {[%clk 0:02:44]}  Rfd8 {[%clk 0:02:12]} 19. f5 {[%clk 0:02:38]}  exf5 {[%clk 0:02:10]} 20. Bd5 {[%clk 0:01:59]}  f4 {[%clk 0:01:40]} 21. Bc1 {[%clk 0:01:42]}  Bb7 {[%clk 0:01:30]} 22. c4 {[%clk 0:01:41]}  Bf6 {[%clk 0:01:15]} 23. Kh1 {[%clk 0:01:25]}  Nd4 {[%clk 0:01:09]} 24. e5 {[%clk 0:01:17]}  Bxd5 {[%clk 0:00:43]} 25. cxd5 {[%clk 0:01:10]}  Nxf3 {[%clk 0:00:43]} 26. exf6 {[%clk 0:00:24]}  Nxe1 {[%clk 0:00:41]} 27. Bxf4 {[%clk 0:00:25]}  Qc8 {[%clk 0:00:22]} 28. Qg3 {[%clk 0:00:21]}  g6 {[%clk 0:00:22]} 29. d6 {[%clk 0:00:13]}  Qf5 {[%clk 0:00:15]} 30. Rxe1 {[%clk 0:00:12]}  Re8 {[%clk 0:00:15]} 31. Rd1 {[%clk 0:00:08]}  Re4 {[%clk 0:00:14]} 32. Bh6 {[%clk 0:00:02]}  Rae8 {[%clk 0:00:13]} 33. h3 {[%clk 0:00:03]}  Qd7 {[%clk 0:00:08]} 34. Kh2 {[%clk 0:00:02]}  Re2 {[%clk 0:00:07]} 35. Rd3 {[%clk 0:00:02]}  R8e6 {[%clk 0:00:06]} 36. Qf3 {[%clk 0:00:02]}  R2e5 {[%clk 0:00:04]} 37. Bf4 {[%clk 0:00:02]}  Rf5 {[%clk 0:00:04]} 38. Qa8+ {[%clk 0:00:02]}  Re8 {[%clk 0:00:03]} 39. Qf3 {[%clk 0:00:03]}  Rxf6 {[%clk 0:00:04]} 40. Qg3 {[%clk 0:00:03]}  Rf5 {[%clk 0:00:04]} 41. Bg5 {[%clk 0:00:03]}  f6 {[%clk 0:00:04]} 42. Bd2 {[%clk 0:00:03]}  Kf7 {[%clk 0:00:03]} 43. b4 {[%clk 0:00:03]}  c4 {[%clk 0:00:03]} 44. Rd4 {[%clk 0:00:04]}  b5 {[%clk 0:00:04]} 45. a4 {[%clk 0:00:04]}  Rfe5 {[%clk 0:00:04]} 46. axb5 {[%clk 0:00:04]}  R8e6 {[%clk 0:00:04]} 47. Bc3 {[%clk 0:00:04]}  Rxd6 {[%clk 0:00:04]} 48. Rf4 {[%clk 0:00:04]}  Rd3 {[%clk 0:00:03]} 49. Rxf6+ {[%clk 0:00:05]}  Kxf6 {[%clk 0:00:03]} 50. Qxe5+ {[%clk 0:00:05]}  Kf7 {[%clk 0:00:03]} 51. Qf4+ {[%clk 0:00:06]}  Qf5 {[%clk 0:00:03]} 52. Qxc4+ {[%clk 0:00:06]}  Qd5 {[%clk 0:00:02]} 53. Qc7+ {[%clk 0:00:06]}  Qd7 {[%clk 0:00:03]} 54. Qf4+ {[%clk 0:00:07]}  Qf5 {[%clk 0:00:03]} 55. Qc4+ {[%clk 0:00:07]}  Qd5 {[%clk 0:00:03]} 56. Qf4+ {[%clk 0:00:07]}  Ke8 {[%clk 0:00:03]} 57. Be5 {[%clk 0:00:04]}  Rd1 {[%clk 0:00:02]} 58. Qe3 {[%clk 0:00:04]}  Qd3 {[%clk 0:00:01]} 59. Qxa7 {[%clk 0:00:03]}  Qf1 {[%clk 0:00:01]} 60. Qb8+ {[%clk 0:00:03]}  Kf7 {[%clk 0:00:01]} 61. Qc7+ {[%clk 0:00:03]}  Ke6 {[%clk 0:00:01]} 62. Bc3 {[%clk 0:00:02]}  Qg1+ {[%clk 0:00:01]} 63. Kg3 {[%clk 0:00:03]}  Rd3+ {[%clk 0:00:01]} 64. Kh4 {[%clk 0:00:02]}  Qf2+ {[%clk 0:00:01]} 65. g3 {[%clk 0:00:02]}  Qf6+ {[%clk 0:00:01]} 66. Bxf6 {[%clk 0:00:02]} 1-0


[Site "https://www.chess.com"]

[Event "Titled Tuesday Blitz February 28 Late 2023"]
[White "Zhigalko, Sergei"]
[Black "Cilek, Bora"]
[WhiteFideId "13502956"]
[BlackFideId "34502165"]
[WhiteElo "2626"]
[BlackElo "2108"]
[Result "1-0"]
[Round "02"]
[TimeControl "180+2"]
[Date "2023.02.28"]
[WhiteClock "0:02:44"]
[BlackClock "0:02:14"]

1. e4 {[%clk 0:03:00]}  c5 {[%clk 0:03:00]} 2. Nf3 {[%clk 0:03:00]}  Nc6 {[%clk 0:02:58]} 3. c3 {[%clk 0:02:59]}  Nf6 {[%clk 0:02:58]} 4. e5 {[%clk 0:02:59]}  Nd5 {[%clk 0:02:59]} 5. Bc4 {[%clk 0:03:00]}  Nb6 {[%clk 0:02:59]} 6. Bb3 {[%clk 0:03:00]}  c4 {[%clk 0:02:56]} 7. Bc2 {[%clk 0:03:01]}  d5 {[%clk 0:02:55]} 8. exd6 {[%clk 0:03:00]}  Qxd6 {[%clk 0:02:55]} 9. O-O {[%clk 0:03:00]}  Bg4 {[%clk 0:02:55]} 10. Re1 {[%clk 0:03:01]}  e6 {[%clk 0:02:54]} 11. b3 {[%clk 0:03:00]}  cxb3 {[%clk 0:02:49]} 12. axb3 {[%clk 0:03:01]}  Be7 {[%clk 0:02:47]} 13. Na3 {[%clk 0:03:01]}  O-O {[%clk 0:02:42]} 14. Nc4 {[%clk 0:03:00]}  Nxc4 {[%clk 0:02:41]} 15. bxc4 {[%clk 0:03:01]}  e5 {[%clk 0:02:35]} 16. Be4 {[%clk 0:02:59]}  f5 {[%clk 0:02:24]} 17. Ba3 {[%clk 0:02:54]}  Qd7 {[%clk 0:02:22]} 18. Bxc6 {[%clk 0:02:49]}  bxc6 {[%clk 0:02:21]} 19. Nxe5 {[%clk 0:02:48]}  Bxd1 {[%clk 0:02:18]} 20. Nxd7 {[%clk 0:02:47]}  Bxa3 {[%clk 0:02:18]} 21. Nxf8 {[%clk 0:02:44]}  Bxf8 {[%clk 0:02:14]} 1-0


[Site "https://www.chess.com"]

[Event "Titled Tuesday Blitz February 28 Late 2023"]
[White "Madaminov, Mukhiddin"]
[Black "Riff, Vincent"]
[WhiteFideId "14210703"]
[BlackFideId "617776"]
[WhiteElo "2511"]
[BlackElo "2369"]
[Result "1-0"]
[Round "02"]
[TimeControl "180+2"]
[Date "2023.02.28"]
[WhiteClock "0:00:40"]
[BlackClock "0:00:35"]

1. d4 {[%clk 0:03:00]}  d5 {[%clk 0:02:58]} 2. Nc3 {[%clk 0:03:01]}  c6 {[%clk 0:02:57]} 3. Bf4 {[%clk 0:03:01]}  Bf5 {[%clk 0:02:53]} 4. f3 {[%clk 0:03:00]}  e6 {[%clk 0:02:52]} 5. e4 {[%clk 0:02:51]}  Bg6 {[%clk 0:02:52]} 6. h4 {[%clk 0:02:51]}  h6 {[%clk 0:02:51]} 7. h5 {[%clk 0:02:50]}  Bh7 {[%clk 0:02:51]} 8. a3 {[%clk 0:02:49]}  Nf6 {[%clk 0:02:49]} 9. e5 {[%clk 0:02:47]}  Nfd7 {[%clk 0:02:48]} 10. Be3 {[%clk 0:02:37]}  c5 {[%clk 0:02:47]} 11. f4 {[%clk 0:02:38]}  Nc6 {[%clk 0:02:42]} 12. Nf3 {[%clk 0:02:38]}  cxd4 {[%clk 0:02:40]} 13. Nxd4 {[%clk 0:02:38]}  Bc5 {[%clk 0:02:40]} 14. Qd2 {[%clk 0:02:33]}  Bxd4 {[%clk 0:02:23]} 15. Bxd4 {[%clk 0:02:32]}  Bxc2 {[%clk 0:02:23]} 16. Nb5 {[%clk 0:02:17]}  Nxd4 {[%clk 0:02:16]} 17. Nd6+ {[%clk 0:02:13]}  Ke7 {[%clk 0:02:14]} 18. Qb4 {[%clk 0:01:52]}  Qc7 {[%clk 0:01:00]} 19. Nf5+ {[%clk 0:01:16]}  Kd8 {[%clk 0:01:00]} 20. Qe7+ {[%clk 0:01:17]}  Kc8 {[%clk 0:00:59]} 21. Nxd4 {[%clk 0:01:17]}  Ba4 {[%clk 0:00:52]} 22. Qxf7 {[%clk 0:01:11]}  Qa5+ {[%clk 0:00:45]} 23. b4 {[%clk 0:01:05]}  Qc7 {[%clk 0:00:45]} 24. Kd2 {[%clk 0:01:03]}  Rf8 {[%clk 0:00:40]} 25. Qxe6 {[%clk 0:01:01]}  Rxf4 {[%clk 0:00:40]} 26. Qe8+ {[%clk 0:01:01]}  Qd8 {[%clk 0:00:38]} 27. Rc1+ {[%clk 0:01:00]}  Bc6 {[%clk 0:00:38]} 28. Rxc6+ {[%clk 0:00:38]}  bxc6 {[%clk 0:00:36]} 29. Ba6+ {[%clk 0:00:38]}  Kc7 {[%clk 0:00:36]} 30. Ne6+ {[%clk 0:00:39]}  Kb6 {[%clk 0:00:36]} 31. Nxd8 {[%clk 0:00:40]}  Kxa6 {[%clk 0:00:35]} 32. Qxd7 {[%clk 0:00:40]} 1-0


[Site "https://www.chess.com"]

[Event "Titled Tuesday Blitz February 28 Late 2023"]
[White "Vasquez Schroeder, Rodrigo"]
[Black "Jimenez Almeida, Luis David"]
[WhiteFideId "3400042"]
[BlackFideId "22242244"]
[WhiteElo "2600"]
[BlackElo "2245"]
[Result "1-0"]
[Round "02"]
[TimeControl "180+2"]
[Date "2023.02.28"]
[WhiteClock "0:00:52"]
[BlackClock "0:00:13"]

1. d4 {[%clk 0:03:00]}  g6 {[%clk 0:02:59]} 2. Nf3 {[%clk 0:02:26]}  Bg7 {[%clk 0:02:58]} 3. e4 {[%clk 0:02:26]}  c6 {[%clk 0:02:57]} 4. Nc3 {[%clk 0:02:25]}  d6 {[%clk 0:02:57]} 5. h3 {[%clk 0:02:22]}  Nf6 {[%clk 0:02:57]} 6. a4 {[%clk 0:02:23]}  O-O {[%clk 0:02:56]} 7. a5 {[%clk 0:02:23]}  Na6 {[%clk 0:02:56]} 8. Bxa6 {[%clk 0:02:18]}  bxa6 {[%clk 0:02:56]} 9. O-O {[%clk 0:02:18]}  Rb8 {[%clk 0:02:56]} 10. Re1 {[%clk 0:02:18]}  Nd7 {[%clk 0:02:52]} 11. b3 {[%clk 0:02:16]}  c5 {[%clk 0:02:49]} 12. Be3 {[%clk 0:02:15]}  Bb7 {[%clk 0:02:42]} 13. Qd2 {[%clk 0:02:14]}  Re8 {[%clk 0:02:41]} 14. Bh6 {[%clk 0:02:11]}  Bh8 {[%clk 0:02:37]} 15. Be3 {[%clk 0:02:09]}  Qc7 {[%clk 0:02:33]} 16. Ra2 {[%clk 0:02:07]}  Rec8 {[%clk 0:02:14]} 17. d5 {[%clk 0:02:04]}  Ba8 {[%clk 0:02:07]} 18. Bg5 {[%clk 0:01:58]}  Re8 {[%clk 0:02:07]} 19. Ra4 {[%clk 0:01:56]}  Rb4 {[%clk 0:02:04]} 20. Bf4 {[%clk 0:01:48]}  Rxa4 {[%clk 0:01:11]} 21. Nxa4 {[%clk 0:01:46]}  Rb8 {[%clk 0:01:04]} 22. Bg5 {[%clk 0:01:35]}  Ne5 {[%clk 0:01:03]} 23. Nxe5 {[%clk 0:01:35]}  Bxe5 {[%clk 0:01:04]} 24. Bf4 {[%clk 0:01:32]}  Bd4 {[%clk 0:01:00]} 25. c3 {[%clk 0:01:26]}  Bg7 {[%clk 0:00:56]} 26. b4 {[%clk 0:01:25]}  Qd7 {[%clk 0:00:44]} 27. Nxc5 {[%clk 0:01:23]}  Qc8 {[%clk 0:00:42]} 28. Na4 {[%clk 0:01:21]}  Qc4 {[%clk 0:00:40]} 29. Be3 {[%clk 0:01:12]}  Rc8 {[%clk 0:00:38]} 30. Bxa7 {[%clk 0:01:05]}  Qb3 {[%clk 0:00:38]} 31. Qd1 {[%clk 0:01:03]}  Qxd1 {[%clk 0:00:15]} 32. Rxd1 {[%clk 0:01:03]}  Bb7 {[%clk 0:00:14]} 33. Bd4 {[%clk 0:01:01]}  Rc4 {[%clk 0:00:13]} 34. Nb6 {[%clk 0:01:00]}  Rc7 {[%clk 0:00:12]} 35. Bxg7 {[%clk 0:00:59]}  Kxg7 {[%clk 0:00:13]} 36. c4 {[%clk 0:01:00]}  Kf6 {[%clk 0:00:14]} 37. f4 {[%clk 0:00:59]}  g5 {[%clk 0:00:14]} 38. g3 {[%clk 0:01:00]}  gxf4 {[%clk 0:00:14]} 39. gxf4 {[%clk 0:01:01]}  e6 {[%clk 0:00:14]} 40. Kf2 {[%clk 0:01:01]}  exd5 {[%clk 0:00:14]} 41. exd5 {[%clk 0:00:55]}  Kf5 {[%clk 0:00:14]} 42. Kf3 {[%clk 0:00:52]}  Re7 {[%clk 0:00:14]} 43. c5 {[%clk 0:00:51]}  Re4 {[%clk 0:00:13]} 44. c6 {[%clk 0:00:51]}  Rxf4+ {[%clk 0:00:13]} 45. Kg3 {[%clk 0:00:52]} 1-0


[Site "https://www.chess.com"]

[Event "Titled Tuesday Blitz February 28 Late 2023"]
[White "Tologon tegin, Semetei"]
[Black "Baskakov, Egor"]
[WhiteFideId "13800574"]
[BlackFideId "24197866"]
[WhiteElo "2247"]
[BlackElo "2212"]
[Result "0-1"]
[Round "02"]
[TimeControl "180+2"]
[Date "2023.02.28"]
[WhiteClock "0:00:11"]
[BlackClock "0:00:43"]

1. d4 {[%clk 0:03:00]}  Nf6 {[%clk 0:02:59]} 2. c4 {[%clk 0:03:01]}  e6 {[%clk 0:02:59]} 3. Nc3 {[%clk 0:03:01]}  d5 {[%clk 0:02:59]} 4. cxd5 {[%clk 0:03:01]}  Nxd5 {[%clk 0:02:58]} 5. e4 {[%clk 0:03:00]}  Nxc3 {[%clk 0:02:59]} 6. bxc3 {[%clk 0:03:00]}  b6 {[%clk 0:02:59]} 7. Nf3 {[%clk 0:02:59]}  Bb7 {[%clk 0:02:59]} 8. Bd3 {[%clk 0:02:59]}  Nd7 {[%clk 0:03:00]} 9. O-O {[%clk 0:02:57]}  Be7 {[%clk 0:03:00]} 10. Qe2 {[%clk 0:02:52]}  O-O {[%clk 0:03:00]} 11. e5 {[%clk 0:02:16]}  Re8 {[%clk 0:02:58]} 12. Nd2 {[%clk 0:02:11]}  c5 {[%clk 0:02:53]} 13. Ne4 {[%clk 0:02:11]}  cxd4 {[%clk 0:02:51]} 14. cxd4 {[%clk 0:02:10]}  Nf8 {[%clk 0:02:51]} 15. Be3 {[%clk 0:02:09]}  Qd5 {[%clk 0:02:45]} 16. Rfd1 {[%clk 0:01:56]}  Rac8 {[%clk 0:02:44]} 17. Qg4 {[%clk 0:01:53]}  Kh8 {[%clk 0:02:19]} 18. h4 {[%clk 0:01:41]}  Nd7 {[%clk 0:01:46]} 19. Qh5 {[%clk 0:01:03]}  f5 {[%clk 0:01:26]} 20. f3 {[%clk 0:00:32]}  g6 {[%clk 0:01:20]} 21. Qh6 {[%clk 0:00:33]}  Bf8 {[%clk 0:01:16]} 22. Qg5 {[%clk 0:00:33]}  Qa5 {[%clk 0:01:12]} 23. Ng3 {[%clk 0:00:27]}  Be7 {[%clk 0:01:00]} 24. Qh6 {[%clk 0:00:24]}  Rg8 {[%clk 0:00:52]} 25. h5 {[%clk 0:00:23]}  Bd5 {[%clk 0:00:48]} 26. hxg6 {[%clk 0:00:19]}  Rxg6 {[%clk 0:00:49]} 27. Qh3 {[%clk 0:00:19]}  Rcg8 {[%clk 0:00:48]} 28. Nxf5 {[%clk 0:00:16]}  Rxg2+ {[%clk 0:00:46]} 29. Qxg2 {[%clk 0:00:15]}  Rxg2+ {[%clk 0:00:47]} 30. Kxg2 {[%clk 0:00:16]}  exf5 {[%clk 0:00:48]} 31. Bxf5 {[%clk 0:00:17]}  Nf8 {[%clk 0:00:47]} 32. Rd2 {[%clk 0:00:17]}  Qc3 {[%clk 0:00:46]} 33. Re1 {[%clk 0:00:14]}  Qc6 {[%clk 0:00:46]} 34. Rf1 {[%clk 0:00:10]}  Ng6 {[%clk 0:00:46]} 35. Bxg6 {[%clk 0:00:09]}  Qxg6+ {[%clk 0:00:47]} 36. Kf2 {[%clk 0:00:09]}  Bh4+ {[%clk 0:00:46]} 37. Ke2 {[%clk 0:00:10]}  Bc4+ {[%clk 0:00:45]} 38. Kd1 {[%clk 0:00:11]}  Qb1# {[%clk 0:00:43]} 0-1


[Site "https://www.chess.com"]

[Event "Titled Tuesday Blitz February 28 Late 2023"]
[White "Moroni, Luca Jr"]
[Black "Janaszak, Dawid"]
[WhiteFideId "865834"]
[BlackFideId "1119206"]
[WhiteElo "2569"]
[BlackElo "2220"]
[Result "1-0"]
[Round "02"]
[TimeControl "180+2"]
[Date "2023.02.28"]
[WhiteClock "0:00:06"]
[BlackClock "0:00:05"]

1. e4 {[%clk 0:03:00]}  c5 {[%clk 0:02:59]} 2. Nf3 {[%clk 0:02:57]}  Nc6 {[%clk 0:02:59]} 3. c4 {[%clk 0:02:47]}  g6 {[%clk 0:02:58]} 4. d4 {[%clk 0:02:47]}  cxd4 {[%clk 0:02:59]} 5. Nxd4 {[%clk 0:02:47]}  e5 {[%clk 0:02:59]} 6. Nc2 {[%clk 0:02:38]}  Nf6 {[%clk 0:02:56]} 7. Nc3 {[%clk 0:02:37]}  d6 {[%clk 0:02:54]} 8. Be2 {[%clk 0:02:36]}  Bg7 {[%clk 0:02:54]} 9. O-O {[%clk 0:02:34]}  O-O {[%clk 0:02:54]} 10. Be3 {[%clk 0:02:28]}  Be6 {[%clk 0:02:53]} 11. Qd2 {[%clk 0:02:26]}  Ne8 {[%clk 0:02:48]} 12. f3 {[%clk 0:02:19]}  f5 {[%clk 0:02:48]} 13. b4 {[%clk 0:02:17]}  f4 {[%clk 0:02:47]} 14. Bf2 {[%clk 0:02:18]}  Qg5 {[%clk 0:02:34]} 15. Rfd1 {[%clk 0:02:00]}  Rd8 {[%clk 0:02:27]} 16. b5 {[%clk 0:01:52]}  Na5 {[%clk 0:02:06]} 17. c5 {[%clk 0:01:27]}  Nc4 {[%clk 0:01:42]} 18. Qe1 {[%clk 0:01:22]}  Bf6 {[%clk 0:01:24]} 19. Nd5 {[%clk 0:01:20]}  Bxd5 {[%clk 0:01:07]} 20. Rxd5 {[%clk 0:01:21]}  Ne3 {[%clk 0:01:07]} 21. Nxe3 {[%clk 0:01:15]}  fxe3 {[%clk 0:01:07]} 22. Bg3 {[%clk 0:01:16]}  dxc5 {[%clk 0:01:03]} 23. Rxc5 {[%clk 0:01:10]}  Rd2 {[%clk 0:00:52]} 24. Rd1 {[%clk 0:01:03]}  b6 {[%clk 0:00:46]} 25. Rd5 {[%clk 0:01:02]}  Qh6 {[%clk 0:00:27]} 26. R1xd2 {[%clk 0:00:51]}  exd2 {[%clk 0:00:27]} 27. Qxd2 {[%clk 0:00:51]}  Bg5 {[%clk 0:00:27]} 28. Qd1 {[%clk 0:00:48]}  Be3+ {[%clk 0:00:27]} 29. Kh1 {[%clk 0:00:48]}  Nf6 {[%clk 0:00:25]} 30. Bc4 {[%clk 0:00:43]}  Kh8 {[%clk 0:00:13]} 31. Bxe5 {[%clk 0:00:35]}  Bf4 {[%clk 0:00:13]} 32. Bxf4 {[%clk 0:00:32]}  Qxf4 {[%clk 0:00:11]} 33. Rd2 {[%clk 0:00:20]}  Qe5 {[%clk 0:00:07]} 34. a4 {[%clk 0:00:16]}  Kg7 {[%clk 0:00:07]} 35. Be2 {[%clk 0:00:13]}  Rc8 {[%clk 0:00:06]} 36. Qe1 {[%clk 0:00:12]}  h5 {[%clk 0:00:04]} 37. Rd1 {[%clk 0:00:11]}  h4 {[%clk 0:00:03]} 38. Qxh4 {[%clk 0:00:11]}  Rh8 {[%clk 0:00:04]} 39. f4 {[%clk 0:00:07]}  Qxe4 {[%clk 0:00:04]} 40. Qf2 {[%clk 0:00:07]}  Re8 {[%clk 0:00:02]} 41. Bf3 {[%clk 0:00:07]}  Qe3 {[%clk 0:00:03]} 42. Qxe3 {[%clk 0:00:07]}  Rxe3 {[%clk 0:00:04]} 43. h3 {[%clk 0:00:08]}  Ra3 {[%clk 0:00:04]} 44. Rd4 {[%clk 0:00:08]}  Ng8 {[%clk 0:00:03]} 45. Rd7+ {[%clk 0:00:07]}  Kf6 {[%clk 0:00:03]} 46. Rxa7 {[%clk 0:00:08]}  Ne7 {[%clk 0:00:03]} 47. Rb7 {[%clk 0:00:07]}  Ra1+ {[%clk 0:00:03]} 48. Kh2 {[%clk 0:00:07]}  Nf5 {[%clk 0:00:03]} 49. Rxb6+ {[%clk 0:00:07]}  Kg7 {[%clk 0:00:04]} 50. Be4 {[%clk 0:00:04]}  Ne3 {[%clk 0:00:04]} 51. Rxg6+ {[%clk 0:00:05]}  Kf7 {[%clk 0:00:03]} 52. h4 {[%clk 0:00:05]}  Nf1+ {[%clk 0:00:04]} 53. Kh3 {[%clk 0:00:06]}  Rxa4 {[%clk 0:00:05]} 54. Bf5 {[%clk 0:00:05]}  Rxf4 {[%clk 0:00:05]} 55. g4 {[%clk 0:00:05]}  Rf2 {[%clk 0:00:04]} 56. g5 {[%clk 0:00:03]}  Rh2+ {[%clk 0:00:05]} 57. Kg4 {[%clk 0:00:03]}  Ne3+ {[%clk 0:00:05]} 58. Kh5 {[%clk 0:00:03]}  Nxf5 {[%clk 0:00:05]} 59. Rf6+ {[%clk 0:00:04]}  Kg7 {[%clk 0:00:05]} 60. Rxf5 {[%clk 0:00:05]}  Rb2 {[%clk 0:00:05]} 61. Rc5 {[%clk 0:00:06]} 1-0


[Site "https://www.chess.com"]